{"text_format":"1","workbook":"xlsx","n_sheets":3,"sheets":["прайс","КП","Лист3"],"not_rendered":{"charts":0,"images":3,"macros":0,"external_links":0,"defined_names":0,"comments":0,"pivot_tables":0},"unopened":[],"bounds":{"document_bytes":16777216,"sheet_cells":100000,"rows_first":2000,"rows_last":500,"rows_between":2000,"halvings":0,"cell_chars":16384,"cell_head_chars":4096},"cells_cut":0,"cells_raw":0,"read":"whole","date_system":"1900"}

{"sheet":"прайс","index":0,"n_rows":13,"n_cols":10,"rows_kept":13,"cut":false,"hidden":false,"merged":[]}
["Группа","Подгруппа","Устройство","Производитель","Технический характеристики","Артикул","Код","ФОТО","Цена зак","Цена роз рек"]
["Видеокамеры","Видеокамеры 1 Mpx","Видеокамера цветная с ИК-подсветкой \n1 Mpx","Hiwatch","Купольная внутренняя видеокамера. Разрешение 1 Мп 1296х732 пикселей 1/4 CMOS матрица. \nИК-подсветка до 20 м. \nОбъектив  3.6мм (2.8мм, 6мм опционально), \nУгол обзора 70.9°(3.6мм), 82°(2.8мм), 56.7°(6мм)\nРабочая температура -20°С — 45°С\nГабариты 98 × 65.4 мм","DS-T101",1,null,1485,{"$f":"I2*1.25","v":1856.25}]
["Видеокамеры","Видеокамеры 1 Mpx","Видеокамера уличная с ИК-подсветкой (антивандальная)\n1 Mpx","Hiwatch","Купольная уличная видеокамера.\nРазрешение 1 Мп 1296х732 пикселей \n1/4 CMOS матрица\nИК-подсветка до 20 м. \nОбъектив  3.6мм (2.8мм, 6мм опционально) \nУгол обзора 70.9°(3.6мм), 82°(2.8мм), 56.7°(6мм)\nРабочая температура -40°С — 60°С\nГабариты 89.6 × 59.1мм","DS-T103",2,null,2080,{"$f":"I3*1.25","v":2600}]
["Видеокамеры","Видеокамеры 1 Mpx","Видеокамера уличная с ИК-подсветкой (антивандальная)\n1 Mpx","Hiwatch","Цилиндрическая уличная видеокамера. \nРазрешение 1 Мп 1296х732 пикселей 1/4 CMOS матрица. \nИК-подсветка до 20 м. \nОбъектив 3.6мм (2.8мм, 6мм опционально), \nУгол обзора 70.9°(3.6мм), 82°(2.8мм), 56.7°(6мм). \nРабочая температура  -40°С — 60°С\nГабариты 70 × 149.5 мм","DS-T100",3,null,2080,2600]
["Видеокамеры","Видеокамеры 1 Mpx","Видеокамера внутренняя с ИК-подсветкой (вариообъектив)\n1 Mpx","Hiwatch","Купольная внутренняя видеокамера.\nРазрешение 1 Мп 1280х720 пикселей \n1/4 CMOS матрица\nИК-подсветка до 30 м. \nОбъектив (2.8 – 12мм)\nУгол обзора 71.8° – 23.4°\nРабочая температура -20°С — 45°С\nГабариты 136 х 102мм","DS-T107",4,null,3510,4387.5]
["Видеокамеры","Видеокамеры 1 Mpx","Видеокамера уличная с ИК-подсветкой (антивандальная, вариообъектив)\n1 Mpx","Hiwatch","Цилиндрическая уличная видеокамера. \nРазрешение 1 Мп 1280х720 пикселей 1/4 CMOS матрица. \nИК-подсветка до 40 м. \nОбъектив (2.8 – 12 мм)\nУгол обзора 71.8° - 23.4°\nРабочая температура  -40°С — 60°С\nГабариты  92 × 84.8 × 269.6мм","DS-T106",5,null,3840,4800]
["Видеокамеры","Видеокамеры 1 Mpx","Видеокамера уличная с ИК-подсветкой (антивандальная, вариообъектив)\n1 Mpx","Hiwatch","Купольная уличная видеокамера.\nРазрешение 1 Мп 1280х720 пикселей \n1/4 CMOS матрица\nИК-подсветка до 40 м. \nОбъектив (2.8 – 12мм)\nУгол обзора 71.8° - 23.4°\nРабочая температура -40°С — 60°С\nГабариты 123.9 × 91.74мм","DS-T109",6,null,3840,4800]
["Видеокамеры","Видеокамеры 1 Mpx","IP Видеокамера цветная с ИК-подсветкой \n1 Mpx","Hiwatch","Купольная уличная видеокамера. \nРазрешение 1 Мп  1280 × 720 пикселей  \n1/4 Progressive scan CMOS матрица. \nИК-подсветка до 30 м. \nОбъектив  2.8 мм\nУгол обзора 92°\nРабочая температура -40°С — 60°С\nГабариты 111 х 82мм","DS-I102",40,null,3840,4800]
["Видеокамеры","Видеокамеры 1 Mpx","IP Видеокамера цветная с EXIR-подсветкой \n1 Mpx","Hiwatch","Купольная уличная видеокамера. \nРазрешение 1 Мп  1280 × 720 пикселей  \n1/4 Progressive scan CMOS матрица. \nEXIR-подсветка до 20 м. \nОбъектив  2.8 мм, 4 мм, 6 мм\nУгол обзора 92° (2.8 мм), 74° (4 мм), 49° (6 мм)\nРабочая температура -40°С — 60°С\nГабариты 85.5 х 70мм","DS-I103",41,null,3840,4800]
["Видеокамеры","Видеокамеры 1 Mpx","IP Видеокамера цветная с ИК-подсветкой \n1 Mpx","Hiwatch","Купольная внутренняя видеокамера. \nПоддержка РоЕ\nРазрешение 1 Мп  1280 × 720 пикселей  \n1/4 Progressive scan CMOS матрица. \nИК-подсветка до 10 м. \nОбъектив 2.8 мм, 4 мм, 6 мм\nУгол обзора  92.5° (2.8мм), 73.1° (4мм), 46° (6мм)\nРабочая температура -20°С — 45°С\nГабариты 111 х 82мм","DS-I113",42,null,3840,4800]
["Видеокамеры","Видеокамеры 1 Mpx","Видеокамера уличная с EXIR-подсветкой (антивандальная)\n1 Mpx","Hiwatch","Цилиндрическая уличная видеокамера. \nРазрешение 1 Мп  1280 × 720 пикселей \n1/4 CMOS матрица. \nEXIR-подсветка до 30 м. \nОбъектив  2.8 мм, 4 мм, 6 мм \nУгол обзора  92° (2.8 мм), 70° (4 мм), 56° (6 мм)\nРабочая температура  -40°С — 60°С\nГабариты 69.1 × 66 х 172.7мм","DS-I100",43,null,3840,4800]
["Видеокамеры","Видеокамеры 1 Mpx","Видеокамера уличная с ИК -подсветкой \n1 Mpx","Hiwatch","Цилиндрическая уличная видеокамера. \nПоддержка РоЕ\nРазрешение 1 Мп  1280 × 720 пикселей \n 1/4 Progressive Scan CMOS матрица. \nИК-подсветка до 30 м. \nОбъектив 4 мм, (6 мм опция) \nУгол обзора  73.1° (4мм), 46° (6мм)\nРабочая температура  -40°С — 60°С\nГабариты 147.5x78.2x92.9мм","DS-I110",44,null,3840,4800]
["Видеокамеры","Видеокамеры 1 Mpx","IP Видеокамера цветная компактная с микрофоном\n1 Mpx","Hiwatch","Компактная внутренняя видеокамера.\nПоддержка РоЕ\nРазрешение 1 Мп 1280×720 пикселей \n1/4 Progressive Scan CMOS матрица\nИК-подсветка до 10 м. PIR-датчик\nОбъектив 2.8мм (4мм, 6мм опция)\nУгол обзора  69 ° (2.8мм), 55° (4мм), 39° (6мм)\nРабочая температура -20°С — 45°С\nГабариты 66×91.5×131.3 мм","DS-I114",45,null,6040,7550]

{"sheet":"КП","index":1,"n_rows":11,"n_cols":4,"rows_kept":11,"cut":false,"hidden":false,"merged":[]}
["Устройство","Производитель","Артикул","ФОТО"]
[{"$f":"прайс!C2","v":"Видеокамера цветная с ИК-подсветкой \n1 Mpx"},{"$f":"прайс!D2","v":"Hiwatch"},{"$f":"прайс!F2","v":"DS-T101"},{"$f":"прайс!H2","v":0}]
[{"$f":"прайс!C3","v":"Видеокамера уличная с ИК-подсветкой (антивандальная)\n1 Mpx"},{"$f":"прайс!D3","v":"Hiwatch"},{"$f":"прайс!F3","v":"DS-T103"},{"$f":"прайс!H3","v":0}]
[{"$f":"прайс!C4","v":"Видеокамера уличная с ИК-подсветкой (антивандальная)\n1 Mpx"},{"$f":"прайс!D4","v":"Hiwatch"},{"$f":"прайс!F4","v":"DS-T100"},{"$f":"прайс!H4","v":0}]
[{"$f":"прайс!C5","v":"Видеокамера внутренняя с ИК-подсветкой (вариообъектив)\n1 Mpx"},{"$f":"прайс!D5","v":"Hiwatch"},{"$f":"прайс!F5","v":"DS-T107"},{"$f":"прайс!H5","v":0}]
[{"$f":"прайс!C6","v":"Видеокамера уличная с ИК-подсветкой (антивандальная, вариообъектив)\n1 Mpx"},{"$f":"прайс!D6","v":"Hiwatch"},{"$f":"прайс!F6","v":"DS-T106"},{"$f":"прайс!H6","v":0}]
[{"$f":"прайс!C7","v":"Видеокамера уличная с ИК-подсветкой (антивандальная, вариообъектив)\n1 Mpx"},{"$f":"прайс!D7","v":"Hiwatch"},{"$f":"прайс!F7","v":"DS-T109"},{"$f":"прайс!H7","v":0}]
[{"$f":"прайс!C8","v":"IP Видеокамера цветная с ИК-подсветкой \n1 Mpx"},{"$f":"прайс!D8","v":"Hiwatch"},{"$f":"прайс!F8","v":"DS-I102"},{"$f":"прайс!H8","v":0}]
[{"$f":"прайс!C9","v":"IP Видеокамера цветная с EXIR-подсветкой \n1 Mpx"},{"$f":"прайс!D9","v":"Hiwatch"},{"$f":"прайс!F9","v":"DS-I103"},{"$f":"прайс!H9","v":0}]
[{"$f":"прайс!C10","v":"IP Видеокамера цветная с ИК-подсветкой \n1 Mpx"},{"$f":"прайс!D10","v":"Hiwatch"},{"$f":"прайс!F10","v":"DS-I113"},{"$f":"прайс!H10","v":0}]
[{"$f":"прайс!C11","v":"Видеокамера уличная с EXIR-подсветкой (антивандальная)\n1 Mpx"},{"$f":"прайс!D11","v":"Hiwatch"},{"$f":"прайс!F11","v":"DS-I100"},{"$f":"прайс!H11","v":0}]

{"sheet":"Лист3","index":2,"n_rows":0,"n_cols":0,"rows_kept":0,"cut":false,"hidden":false,"merged":[]}